[Event "*** Titled Tuesday Blitz"]
[Site "Chess.com"]
[Date "2018.09.04"]
[Round "7"]
[White "colemman"]
[Black "AndrewDGreen"]
[Result "1/2-1/2"]
[WhiteElo "2463"]
[BlackElo "2236"]
[TimeControl "180+2"]
[EndTime "15:15:32 PDT"]
[Termination "Game drawn by repetition"]

1. d4 {[%clk 0:03:01.9]} 1... Nf6 {[%clk 0:02:57.7]} 2. Nf3 {[%clk 0:03:03.3]}
2... g6 {[%clk 0:02:58.5]} 3. Nbd2 {[%clk 0:03:04.7]} 3... Bg7 {[%clk 0:02:53]}
4. e4 {[%clk 0:03:05.7]} 4... d6 {[%clk 0:02:54.2]} 5. Bc4 {[%clk 0:03:06.1]}
5... O-O {[%clk 0:02:52.1]} 6. O-O {[%clk 0:03:06]} 6... Nc6 {[%clk 0:02:53]} 7.
Re1 {[%clk 0:03:05.4]} 7... e5 {[%clk 0:02:53.9]} 8. dxe5 {[%clk 0:03:03.8]}
8... Nxe5 {[%clk 0:02:55.8]} 9. Nxe5 {[%clk 0:03:04.1]} 9... dxe5 {[%clk
0:02:57.7]} 10. b3 {[%clk 0:03:04.1]} 10... Bh6 {[%clk 0:02:53.8]} 11. Nf3
{[%clk 0:02:38.9]} 11... Bxc1 {[%clk 0:02:48.2]} 12. Qxc1 {[%clk 0:02:32.4]}
12... Qe7 {[%clk 0:02:44.7]} 13. Qg5 {[%clk 0:02:32.5]} 13... Re8 {[%clk
0:02:35.5]} 14. h3 {[%clk 0:02:23.4]} 14... Kg7 {[%clk 0:02:34.9]} 15. Rad1
{[%clk 0:02:14.4]} 15... c6 {[%clk 0:02:21.2]} 16. a4 {[%clk 0:02:13]} 16... a5
{[%clk 0:02:01.1]} 17. Qe3 {[%clk 0:01:58.3]} 17... Qb4 {[%clk 0:01:49.7]} 18.
Ng5 {[%clk 0:01:46.4]} 18... Rf8 {[%clk 0:01:45.7]} 19. c3 {[%clk 0:01:43.1]}
19... Qe7 {[%clk 0:01:45.7]} 20. Nf3 {[%clk 0:01:34.9]} 20... h6 {[%clk
0:01:45.6]} 21. Qb6 {[%clk 0:01:35.2]} 21... Re8 {[%clk 0:01:41.7]} 22. Rd3
{[%clk 0:01:22.9]} 22... Nd7 {[%clk 0:01:41.6]} 23. Qc7 {[%clk 0:01:16.8]} 23...
Nc5 {[%clk 0:01:40.1]} 24. Qxe7 {[%clk 0:01:17.2]} 24... Rxe7 {[%clk 0:01:41]}
25. Rd8 {[%clk 0:01:18]} 25... b6 {[%clk 0:01:09]} 26. Rd6 {[%clk 0:01:08.5]}
26... Bb7 {[%clk 0:01:01.8]} 27. Nd2 {[%clk 0:01:08]} 27... Rd7 {[%clk
0:00:51.5]} 28. Rxd7 {[%clk 0:01:06.8]} 28... Nxd7 {[%clk 0:00:53.4]} 29. f3
{[%clk 0:01:02]} 29... Rd8 {[%clk 0:00:52.5]} 30. Kf2 {[%clk 0:01:00.9]} 30...
Nc5 {[%clk 0:00:51.4]} 31. Nf1 {[%clk 0:00:59.5]} 31... Ba6 {[%clk 0:00:47.8]}
32. Bxa6 {[%clk 0:00:59.3]} 32... Nxa6 {[%clk 0:00:49.7]} 33. Ke2 {[%clk
0:00:50.1]} 33... Nc5 {[%clk 0:00:48.6]} 34. Rb1 {[%clk 0:00:50.6]} 34... f5
{[%clk 0:00:49.4]} 35. Nd2 {[%clk 0:00:48.4]} 35... Ra8 {[%clk 0:00:26.1]} 36.
exf5 {[%clk 0:00:38.3]} 36... gxf5 {[%clk 0:00:26.9]} 37. Nc4 {[%clk 0:00:39.8]}
37... b5 {[%clk 0:00:17.7]} 38. Nxe5 {[%clk 0:00:38.4]} 38... Re8 {[%clk
0:00:17]} 39. f4 {[%clk 0:00:39.3]} 39... Nd7 {[%clk 0:00:18.4]} 40. axb5 {[%clk
0:00:38.3]} 40... cxb5 {[%clk 0:00:16.9]} 41. Ra1 {[%clk 0:00:39.7]} 41... Nxe5
{[%clk 0:00:17.1]} 42. fxe5 {[%clk 0:00:41.2]} 42... Rxe5+ {[%clk 0:00:18.6]}
43. Kd3 {[%clk 0:00:42.1]} 43... Rd5+ {[%clk 0:00:15.1]} 44. Kc2 {[%clk
0:00:38.8]} 44... b4 {[%clk 0:00:12.5]} 45. cxb4 {[%clk 0:00:37.4]} 45... axb4
{[%clk 0:00:14.4]} 46. Ra4 {[%clk 0:00:37.7]} 46... Rd4 {[%clk 0:00:15.6]} 47.
Ra6 {[%clk 0:00:37.4]} 47... f4 {[%clk 0:00:13.2]} 48. Rb6 {[%clk 0:00:36.7]}
48... h5 {[%clk 0:00:11.7]} 49. h4 {[%clk 0:00:36]} 49... f3 {[%clk 0:00:11.4]}
50. gxf3 {[%clk 0:00:36.1]} 50... Rxh4 {[%clk 0:00:12.3]} 51. Kd3 {[%clk
0:00:37.1]} 51... Rf4 {[%clk 0:00:12.1]} 52. Ke3 {[%clk 0:00:38.1]} 52... Rh4
{[%clk 0:00:09.7]} 53. Kf2 {[%clk 0:00:38.4]} 53... Rd4 {[%clk 0:00:09.6]} 54.
Kg3 {[%clk 0:00:39.1]} 54... Kf7 {[%clk 0:00:06.7]} 55. Rb5 {[%clk 0:00:36.7]}
55... Kg6 {[%clk 0:00:06.9]} 56. Kg2 {[%clk 0:00:34.7]} 56... Kh6 {[%clk
0:00:06.5]} 57. Kg3 {[%clk 0:00:34.1]} 57... Kg6 {[%clk 0:00:07.8]} 58. Kf2
{[%clk 0:00:32.5]} 58... h4 {[%clk 0:00:07.2]} 59. Kg2 {[%clk 0:00:20.7]} 59...
Kf6 {[%clk 0:00:08.3]} 60. Kh3 {[%clk 0:00:19.6]} 60... Rd3 {[%clk 0:00:09]} 61.
Rxb4 {[%clk 0:00:20.5]} 61... Rxf3+ {[%clk 0:00:09.9]} 62. Kxh4 {[%clk 0:00:22]}
62... Ke6 {[%clk 0:00:10.2]} 63. Kg4 {[%clk 0:00:23.4]} 63... Rf6 {[%clk
0:00:09.9]} 64. Rd4 {[%clk 0:00:24.1]} 64... Ke7 {[%clk 0:00:08.7]} 65. Kg5
{[%clk 0:00:22.9]} 65... Rd6 {[%clk 0:00:09.7]} 66. Rc4 {[%clk 0:00:22.1]} 66...
Kd7 {[%clk 0:00:10.9]} 67. Kf5 {[%clk 0:00:23.4]} 67... Rc6 {[%clk 0:00:12.1]}
68. Rd4+ {[%clk 0:00:21.5]} 68... Kc7 {[%clk 0:00:13]} 69. Ke5 {[%clk 0:00:23]}
69... Kb7 {[%clk 0:00:13.5]} 70. Kd5 {[%clk 0:00:23.8]} 70... Rh6 {[%clk
0:00:13.7]} 71. Kc5 {[%clk 0:00:23.9]} 71... Kb8 {[%clk 0:00:13.5]} 72. Rd5
{[%clk 0:00:23.6]} 72... Kb7 {[%clk 0:00:14.5]} 73. Rg5 {[%clk 0:00:23.9]} 73...
Kb8 {[%clk 0:00:14.9]} 74. Kb5 {[%clk 0:00:24.9]} 74... Kb7 {[%clk 0:00:16.1]}
75. Rc5 {[%clk 0:00:25.8]} 75... Kb8 {[%clk 0:00:17.1]} 76. Rc6 {[%clk 0:00:27]}
76... Rh1 {[%clk 0:00:15.5]} 77. Rg6 {[%clk 0:00:25.5]} 77... Rb1 {[%clk
0:00:15.3]} 78. b4 {[%clk 0:00:25.7]} 78... Kb7 {[%clk 0:00:15.9]} 79. Rg7+
{[%clk 0:00:26.3]} 79... Kb8 {[%clk 0:00:17]} 80. Kc5 {[%clk 0:00:27.8]} 80...
Rh1 {[%clk 0:00:16.9]} 81. Rg6 {[%clk 0:00:28.7]} 81... Rh8 {[%clk 0:00:17.6]}
82. Kb6 {[%clk 0:00:29.6]} 82... Rf8 {[%clk 0:00:18.3]} 83. Ka6 {[%clk
0:00:28.3]} 83... Rh8 {[%clk 0:00:19.4]} 84. Rb6+ {[%clk 0:00:29.2]} 84... Ka8
{[%clk 0:00:20.1]} 85. Re6 {[%clk 0:00:30.7]} 85... Kb8 {[%clk 0:00:21.1]} 86.
Kb6 {[%clk 0:00:30.6]} 86... Rf8 {[%clk 0:00:20.5]} 87. Kc6 {[%clk 0:00:30.6]}
87... Rh8 {[%clk 0:00:21.5]} 88. Kc5 {[%clk 0:00:28.4]} 88... Rg8 {[%clk
0:00:22.6]} 89. Kb5 {[%clk 0:00:26.8]} 89... Rh8 {[%clk 0:00:23.7]} 90. Ka6
{[%clk 0:00:26.8]} 90... Rg8 {[%clk 0:00:24.7]} 91. Rb6+ {[%clk 0:00:27.5]}
91... Ka8 {[%clk 0:00:25.4]} 92. Rd6 {[%clk 0:00:27.8]} 92... Kb8 {[%clk
0:00:26.5]} 93. b5 {[%clk 0:00:29.1]} 93... Rh8 {[%clk 0:00:27.5]} 94. Rd7
{[%clk 0:00:29.9]} 94... Rg8 {[%clk 0:00:27.9]} 95. Rb7+ {[%clk 0:00:28.5]}
95... Ka8 {[%clk 0:00:29]} 96. Rf7 {[%clk 0:00:30]} 96... Kb8 {[%clk 0:00:29.7]}
97. b6 {[%clk 0:00:31.4]} 97... Rh8 {[%clk 0:00:30.5]} 98. Rb7+ {[%clk
0:00:31.9]} 98... Ka8 {[%clk 0:00:31.3]} 99. Rg7 {[%clk 0:00:30.9]} 99... Kb8
{[%clk 0:00:31.9]} 100. Ra7 {[%clk 0:00:26.9]} 100... Rg8 {[%clk 0:00:32]} 101.
Rb7+ {[%clk 0:00:25.1]} 101... Ka8 {[%clk 0:00:32.5]} 102. Re7 {[%clk
0:00:25.6]} 102... Kb8 {[%clk 0:00:31.7]} 103. Re6 {[%clk 0:00:26.4]} 103... Rh8
{[%clk 0:00:30.6]} 104. Kb5 {[%clk 0:00:27.7]} 104... Rg8 {[%clk 0:00:31]} 105.
Kc6 {[%clk 0:00:28.8]} 105... Rh8 {[%clk 0:00:31.7]} 106. Re7 {[%clk 0:00:29.7]}
106... Rg8 {[%clk 0:00:31.8]} 107. Rb7+ {[%clk 0:00:29.7]} 107... Ka8 {[%clk
0:00:30.5]} 108. Rd7 {[%clk 0:00:23.5]} 108... Kb8 {[%clk 0:00:30.4]} 109. Rb7+
{[%clk 0:00:22.6]} 109... Ka8 {[%clk 0:00:31.3]} 110. Ra7+ {[%clk 0:00:21.5]}
110... Kb8 {[%clk 0:00:32]} 111. Rf7 {[%clk 0:00:22.1]} 111... Rh8 {[%clk
0:00:31.6]} 112. Re7 {[%clk 0:00:21.3]} 112... Rg8 {[%clk 0:00:32.2]} 113. Kd6
{[%clk 0:00:21.2]} 113... Rh8 {[%clk 0:00:32.7]} 114. Re6 {[%clk 0:00:21.9]}
114... Rg8 {[%clk 0:00:33.1]} 115. Kd7 {[%clk 0:00:23.2]} 115... Rh8 {[%clk
0:00:31.4]} 116. Rc6 {[%clk 0:00:21.8]} 116... Rh7+ {[%clk 0:00:24.9]} 117. Kd6
{[%clk 0:00:22.6]} 117... Rh6+ {[%clk 0:00:23.3]} 118. Kc5 {[%clk 0:00:22.5]}
118... Rh5+ {[%clk 0:00:22.8]} 119. Kc4 {[%clk 0:00:23.8]} 119... Rh8 {[%clk
0:00:23.4]} 120. Kb5 {[%clk 0:00:24.1]} 120... Rg8 {[%clk 0:00:24.1]} 121. Rd6
{[%clk 0:00:24.6]} 121... Rh8 {[%clk 0:00:24.9]} 122. Kc6 {[%clk 0:00:25.9]}
122... Rg8 {[%clk 0:00:25]} 123. Rd7 {[%clk 0:00:27.3]} 123... Rh8 {[%clk
0:00:25]} 124. Rb7+ {[%clk 0:00:27.9]} 124... Ka8 {[%clk 0:00:25.8]} 125. Ra7+
{[%clk 0:00:28.7]} 125... Kb8 {[%clk 0:00:25.8]} 126. Re7 {[%clk 0:00:27.7]}
126... Rg8 {[%clk 0:00:25.9]} 1/2-1/2

[Event "*** Titled Tuesday Blitz"]
[Site "Chess.com"]
[Date "2018.09.04"]
[Round "8"]
[White "rasmussvane"]
[Black "ChainsOfFantasia"]
[Result "1-0"]
[WhiteElo "2657"]
[BlackElo "2380"]
[TimeControl "180+2"]
[EndTime "15:16:41 PDT"]
[Termination "rasmussvane won by resignation"]

1. Nf3 {[%clk 0:03:01.9]} 1... Nf6 {[%clk 0:03:00.9]} 2. c4 {[%clk 0:03:03.3]}
2... e6 {[%clk 0:03:02.6]} 3. g3 {[%clk 0:03:04.8]} 3... d5 {[%clk 0:03:03.1]}
4. Bg2 {[%clk 0:03:06.4]} 4... Be7 {[%clk 0:03:03.3]} 5. O-O {[%clk 0:03:07.9]}
5... O-O {[%clk 0:03:03.3]} 6. b3 {[%clk 0:03:09.2]} 6... d4 {[%clk 0:03:03.2]}
7. e3 {[%clk 0:03:09.3]} 7... c5 {[%clk 0:03:04.2]} 8. exd4 {[%clk 0:03:09.3]}
8... cxd4 {[%clk 0:03:06.1]} 9. Re1 {[%clk 0:03:10.5]} 9... Nc6 {[%clk
0:03:06.9]} 10. d3 {[%clk 0:03:09.1]} 10... Re8 {[%clk 0:03:05.9]} 11. Ne5
{[%clk 0:03:08.8]} 11... Nxe5 {[%clk 0:03:06.1]} 12. Rxe5 {[%clk 0:03:10.7]}
12... Bd6 {[%clk 0:03:07.5]} 13. Re1 {[%clk 0:03:11.6]} 13... e5 {[%clk
0:03:08.8]} 14. Ba3 {[%clk 0:03:12.9]} 14... Bd7 {[%clk 0:03:08]} 15. Bxd6
{[%clk 0:03:13.5]} 1-0

[Event "*** Titled Tuesday Blitz"]
[Site "Chess.com"]
[Date "2018.09.04"]
[Round "8"]
[White "335394862"]
[Black "MFguimaraes"]
[Result "1-0"]
[WhiteElo "2307"]
[BlackElo "2268"]
[TimeControl "180+2"]
[EndTime "15:18:37 PDT"]
[Termination "335394862 won by resignation"]

1. e4 {[%clk 0:03:01.9]} 1... e5 {[%clk 0:03:00.8]} 2. Nf3 {[%clk 0:03:02.3]}
2... Nf6 {[%clk 0:03:00]} 3. Nxe5 {[%clk 0:03:03]} 3... d6 {[%clk 0:03:00.8]} 4.
Nxf7 {[%clk 0:02:59.7]} 4... Kxf7 {[%clk 0:03:02.3]} 5. Nc3 {[%clk 0:03:00.1]}
5... c5 {[%clk 0:03:03.8]} 6. Bc4+ {[%clk 0:03:00.6]} 6... Be6 {[%clk
0:03:04.2]} 7. Bxe6+ {[%clk 0:03:01.6]} 7... Kxe6 {[%clk 0:03:05.3]} 8. O-O
{[%clk 0:03:02.6]} 8... Be7 {[%clk 0:03:05.1]} 9. d4 {[%clk 0:03:00.5]} 9...
cxd4 {[%clk 0:03:04.8]} 10. Qxd4 {[%clk 0:03:00.3]} 10... Nc6 {[%clk 0:03:02.3]}
11. Qc4+ {[%clk 0:03:00.4]} 11... Kd7 {[%clk 0:03:03.5]} 12. Rd1 {[%clk
0:02:59.8]} 12... Qa5 {[%clk 0:02:56.6]} 13. Bf4 {[%clk 0:02:59]} 13... Rac8
{[%clk 0:02:39.2]} 14. Qf7 {[%clk 0:02:49.9]} 14... Rcf8 {[%clk 0:02:32.8]} 15.
Rxd6+ {[%clk 0:02:42.3]} 15... Kc8 {[%clk 0:02:30]} 16. Qe6+ {[%clk 0:02:38.2]}
16... Kc7 {[%clk 0:02:29]} 17. Rxc6+ {[%clk 0:02:36.3]} 1-0

[Event "*** Titled Tuesday Blitz"]
[Site "Chess.com"]
[Date "2018.09.04"]
[Round "8"]
[White "Zarikovs1999"]
[Black "champ2005"]
[Result "0-1"]
[WhiteElo "2185"]
[BlackElo "2732"]
[TimeControl "180+2"]
[EndTime "15:19:20 PDT"]
[Termination "champ2005 won by resignation"]

1. e4 {[%clk 0:03:01.9]} 1... c6 {[%clk 0:02:58.6]} 2. d4 {[%clk 0:03:01.9]}
2... d5 {[%clk 0:02:59.7]} 3. Nc3 {[%clk 0:03:03.3]} 3... dxe4 {[%clk
0:03:00.4]} 4. Nxe4 {[%clk 0:03:05.2]} 4... Bf5 {[%clk 0:03:01.9]} 5. Ng3 {[%clk
0:03:06.1]} 5... Bg6 {[%clk 0:03:02.5]} 6. Nf3 {[%clk 0:03:07.4]} 6... Nd7
{[%clk 0:03:03.3]} 7. h4 {[%clk 0:03:08.3]} 7... h6 {[%clk 0:03:04.6]} 8. h5
{[%clk 0:03:09.7]} 8... Bh7 {[%clk 0:03:05.9]} 9. Bd3 {[%clk 0:03:11.2]} 9...
Bxd3 {[%clk 0:03:07]} 10. Qxd3 {[%clk 0:03:13.1]} 10... e6 {[%clk 0:03:08.3]}
11. Bd2 {[%clk 0:03:13.4]} 11... Ngf6 {[%clk 0:03:09.2]} 12. O-O-O {[%clk
0:03:14.7]} 12... Be7 {[%clk 0:03:10.8]} 13. Kb1 {[%clk 0:03:15]} 13... O-O
{[%clk 0:03:12.2]} 14. c4 {[%clk 0:03:03.3]} 14... b5 {[%clk 0:03:11]} 15. cxb5
{[%clk 0:03:00]} 15... cxb5 {[%clk 0:03:11.8]} 16. Qxb5 {[%clk 0:02:54.3]} 16...
Rb8 {[%clk 0:03:11.5]} 17. Qe2 {[%clk 0:02:53.2]} 17... Qb6 {[%clk 0:03:10.8]}
18. Bc3 {[%clk 0:02:54.5]} 18... Nd5 {[%clk 0:03:11.5]} 19. Rc1 {[%clk
0:02:55.4]} 19... Rfc8 {[%clk 0:03:12.2]} 20. Ka1 {[%clk 0:02:54.5]} 20... a5
{[%clk 0:02:58.2]} 21. Ne5 {[%clk 0:02:24.6]} 21... N7f6 {[%clk 0:02:50.7]} 22.
Rhd1 {[%clk 0:02:11.4]} 22... a4 {[%clk 0:02:50.5]} 23. a3 {[%clk 0:02:08.9]}
23... Bxa3 {[%clk 0:02:43.9]} 24. bxa3 {[%clk 0:02:08.3]} 24... Nxc3 {[%clk
0:02:42.2]} 25. Rxc3 {[%clk 0:01:50.9]} 25... Rxc3 {[%clk 0:02:42]} 0-1

[Event "*** Titled Tuesday Blitz"]
[Site "Chess.com"]
[Date "2018.09.04"]
[Round "8"]
[White "TrimitziosP7"]
[Black "SARGISMV"]
[Result "0-1"]
[WhiteElo "2634"]
[BlackElo "2493"]
[TimeControl "180+2"]
[EndTime "15:20:22 PDT"]
[Termination "SARGISMV won by resignation"]

1. Nf3 {[%clk 0:03:01.9]} 1... Nf6 {[%clk 0:02:57.5]} 2. c4 {[%clk 0:03:03]}
2... c5 {[%clk 0:02:57.1]} 3. Nc3 {[%clk 0:03:03.8]} 3... g6 {[%clk 0:02:59]} 4.
d4 {[%clk 0:03:04.8]} 4... cxd4 {[%clk 0:02:59.1]} 5. Nxd4 {[%clk 0:03:06.7]}
5... Bg7 {[%clk 0:03:01]} 6. e4 {[%clk 0:03:07.7]} 6... O-O {[%clk 0:03:02.5]}
7. Be3 {[%clk 0:03:08.5]} 7... Nc6 {[%clk 0:03:03.3]} 8. Be2 {[%clk 0:03:09.7]}
8... d6 {[%clk 0:03:04.6]} 9. O-O {[%clk 0:03:10.5]} 9... Bd7 {[%clk 0:03:05.4]}
10. f3 {[%clk 0:03:11.4]} 10... Nxd4 {[%clk 0:03:06]} 11. Bxd4 {[%clk
0:03:12.4]} 11... a5 {[%clk 0:03:06.2]} 12. Qd2 {[%clk 0:03:13.7]} 12... Bc6
{[%clk 0:03:02.3]} 13. Rfd1 {[%clk 0:03:15]} 13... Nd7 {[%clk 0:03:02.5]} 14.
Be3 {[%clk 0:03:16.3]} 14... Nc5 {[%clk 0:02:58.6]} 15. Rac1 {[%clk 0:03:17.3]}
15... Qb6 {[%clk 0:02:58.4]} 16. Rc2 {[%clk 0:03:13.8]} 16... a4 {[%clk
0:02:56.9]} 17. Bd4 {[%clk 0:03:04.9]} 17... Ra6 {[%clk 0:02:34.7]} 18. Bxg7
{[%clk 0:02:52.7]} 18... Nd3+ {[%clk 0:02:12.6]} 19. Kh1 {[%clk 0:01:20.3]}
19... Nf2+ {[%clk 0:02:12.3]} 20. Kg1 {[%clk 0:01:15.9]} 20... Nh3+ {[%clk
0:02:12.9]} 21. Kh1 {[%clk 0:01:07.2]} 21... Qg1+ {[%clk 0:02:12]} 0-1

[Event "*** Titled Tuesday Blitz"]
[Site "Chess.com"]
[Date "2018.09.04"]
[Round "8"]
[White "HonzaVykouk"]
[Black "dretch"]
[Result "0-1"]
[WhiteElo "2572"]
[BlackElo "2776"]
[TimeControl "180+2"]
[EndTime "15:20:44 PDT"]
[Termination "dretch won by resignation"]

1. e4 {[%clk 0:03:00.1]} 1... e6 {[%clk 0:03:00.5]} 2. d4 {[%clk 0:03:00.8]}
2... d5 {[%clk 0:03:01.9]} 3. Nd2 {[%clk 0:03:02.2]} 3... c5 {[%clk 0:02:59.2]}
4. exd5 {[%clk 0:03:02.7]} 4... Qxd5 {[%clk 0:03:00.1]} 5. Ngf3 {[%clk
0:03:03.9]} 5... cxd4 {[%clk 0:03:01.3]} 6. Bc4 {[%clk 0:03:05.4]} 6... Qd6
{[%clk 0:02:59.9]} 7. O-O {[%clk 0:03:04.9]} 7... Nf6 {[%clk 0:03:01.3]} 8. Nb3
{[%clk 0:03:05.6]} 8... Nc6 {[%clk 0:03:02.8]} 9. Nbxd4 {[%clk 0:03:06.4]} 9...
Nxd4 {[%clk 0:03:04.7]} 10. Nxd4 {[%clk 0:03:07.8]} 10... Be7 {[%clk 0:03:06]}
11. c3 {[%clk 0:03:01.7]} 11... O-O {[%clk 0:03:04.5]} 12. Qf3 {[%clk
0:03:02.6]} 12... Qc7 {[%clk 0:03:01.2]} 13. Bb3 {[%clk 0:03:03.1]} 13... Bd7
{[%clk 0:02:59]} 14. Re1 {[%clk 0:03:00.8]} 14... Bd6 {[%clk 0:02:56.3]} 15. h3
{[%clk 0:03:01.6]} 15... e5 {[%clk 0:02:53.8]} 16. Nf5 {[%clk 0:03:02]} 16... e4
{[%clk 0:02:55.2]} 17. Nh6+ {[%clk 0:02:59.7]} 17... Kh8 {[%clk 0:02:56.4]} 18.
Qe3 {[%clk 0:02:22.7]} 18... gxh6 {[%clk 0:02:51.7]} 19. Qxh6 {[%clk 0:02:24.2]}
19... Ng8 {[%clk 0:02:52.3]} 20. Qh5 {[%clk 0:02:21.1]} 20... Rae8 {[%clk
0:02:39.9]} 21. Be3 {[%clk 0:02:07.2]} 21... Be5 {[%clk 0:02:39.7]} 22. Rad1
{[%clk 0:02:04.6]} 22... Bg7 {[%clk 0:02:35.2]} 23. Bxa7 {[%clk 0:01:57.9]}
23... b6 {[%clk 0:02:29.3]} 24. Bxb6 {[%clk 0:01:57.6]} 24... Qxb6 {[%clk
0:02:30.6]} 25. Rxd7 {[%clk 0:01:58]} 25... Nf6 {[%clk 0:02:31.9]} 26. Qf5
{[%clk 0:00:41.3]} 26... Nxd7 {[%clk 0:02:32.1]} 27. Qxd7 {[%clk 0:00:43.1]}
27... e3 {[%clk 0:02:32.5]} 28. f3 {[%clk 0:00:40.1]} 28... e2+ {[%clk
0:02:32.9]} 0-1

[Event "*** Titled Tuesday Blitz"]
[Site "Chess.com"]
[Date "2018.09.04"]
[Round "8"]
[White "Vegan4future"]
[Black "Mikhail_Golubev"]
[Result "0-1"]
[WhiteElo "2389"]
[BlackElo "2416"]
[TimeControl "180+2"]
[EndTime "15:21:12 PDT"]
[Termination "Mikhail_Golubev won by resignation"]

1. d4 {[%clk 0:03:01.9]} 1... Nf6 {[%clk 0:02:56.6]} 2. c4 {[%clk 0:03:02.6]}
2... g6 {[%clk 0:02:56.4]} 3. Nf3 {[%clk 0:03:03.9]} 3... Bg7 {[%clk 0:02:55.6]}
4. g3 {[%clk 0:03:05.8]} 4... O-O {[%clk 0:02:56.1]} 5. Bg2 {[%clk 0:03:07.7]}
5... d6 {[%clk 0:02:57.2]} 6. O-O {[%clk 0:03:09.3]} 6... Nbd7 {[%clk
0:02:57.9]} 7. Nc3 {[%clk 0:03:10.3]} 7... e5 {[%clk 0:02:58.7]} 8. e4 {[%clk
0:03:10.6]} 8... exd4 {[%clk 0:02:57.3]} 9. Nxd4 {[%clk 0:03:12.5]} 9... Re8
{[%clk 0:02:58.4]} 10. Be3 {[%clk 0:03:07.1]} 10... Nc5 {[%clk 0:02:49.7]} 11.
Qc2 {[%clk 0:03:07.8]} 11... Ng4 {[%clk 0:02:47.6]} 12. Qd2 {[%clk 0:02:54.8]}
12... Nxe3 {[%clk 0:02:43.6]} 13. Qxe3 {[%clk 0:02:56.7]} 13... f5 {[%clk
0:02:33.9]} 14. Rad1 {[%clk 0:02:51.1]} 14... fxe4 {[%clk 0:02:23.4]} 15. Nxe4
{[%clk 0:02:53]} 15... Bf5 {[%clk 0:02:10.3]} 16. Nxf5 {[%clk 0:02:42.2]} 16...
gxf5 {[%clk 0:02:10.4]} 17. Nxc5 {[%clk 0:02:43.7]} 17... Rxe3 {[%clk
0:02:08.1]} 18. fxe3 {[%clk 0:02:45.6]} 18... Qg5 {[%clk 0:02:01.2]} 19. Bd5+
{[%clk 0:02:30.3]} 19... Kh8 {[%clk 0:01:50.7]} 20. Ne6 {[%clk 0:02:09]} 20...
Qxe3+ {[%clk 0:01:50.5]} 21. Kh1 {[%clk 0:02:05.6]} 21... c6 {[%clk 0:01:50.5]}
22. Rde1 {[%clk 0:02:05.9]} 22... Qh6 {[%clk 0:01:47.6]} 23. Bf3 {[%clk
0:01:48.7]} 23... Bxb2 {[%clk 0:01:43]} 24. Nf4 {[%clk 0:01:46.3]} 24... Be5
{[%clk 0:01:38.6]} 25. Bg2 {[%clk 0:01:44.1]} 25... Rg8 {[%clk 0:01:31.7]} 26.
Re3 {[%clk 0:01:40.6]} 26... Rg4 {[%clk 0:01:23.7]} 27. Ne2 {[%clk 0:01:28.2]}
27... Qxe3 {[%clk 0:01:18.3]} 0-1

[Event "*** Titled Tuesday Blitz"]
[Site "Chess.com"]
[Date "2018.09.04"]
[Round "8"]
[White "VeraNebolsina"]
[Black "Kimster98"]
[Result "0-1"]
[WhiteElo "2378"]
[BlackElo "2476"]
[TimeControl "180+2"]
[EndTime "15:21:20 PDT"]
[Termination "Kimster98 won by resignation"]

1. e4 {[%clk 0:02:43.3]} 1... d6 {[%clk 0:03:01.7]} 2. d4 {[%clk 0:02:43.6]}
2... Nf6 {[%clk 0:03:02.8]} 3. Nc3 {[%clk 0:02:44.1]} 3... c6 {[%clk 0:03:04.2]}
4. Nf3 {[%clk 0:02:43.3]} 4... Bg4 {[%clk 0:03:04.2]} 5. h3 {[%clk 0:02:39.8]}
5... Bxf3 {[%clk 0:03:03.7]} 6. Qxf3 {[%clk 0:02:40.3]} 6... Nbd7 {[%clk
0:03:05.1]} 7. Be3 {[%clk 0:02:41]} 7... e6 {[%clk 0:03:05.8]} 8. d5 {[%clk
0:02:26]} 8... cxd5 {[%clk 0:02:59.9]} 9. exd5 {[%clk 0:02:26.6]} 9... e5 {[%clk
0:03:01.4]} 10. Bb5 {[%clk 0:02:11]} 10... Be7 {[%clk 0:03:01.2]} 11. g4 {[%clk
0:01:33]} 11... a6 {[%clk 0:02:58.8]} 12. Bxd7+ {[%clk 0:01:31.9]} 12... Nxd7
{[%clk 0:03:00.7]} 13. Ne4 {[%clk 0:01:28.5]} 13... Qa5+ {[%clk 0:02:48.7]} 14.
c3 {[%clk 0:01:28.1]} 14... Qxd5 {[%clk 0:02:44.7]} 15. Rd1 {[%clk 0:01:26.9]}
15... Qc6 {[%clk 0:02:44.5]} 16. Bg5 {[%clk 0:01:15.3]} 16... d5 {[%clk
0:02:23.1]} 17. Bxe7 {[%clk 0:00:28.2]} 17... dxe4 {[%clk 0:02:20.4]} 18. Qf5
{[%clk 0:00:22.5]} 18... Kxe7 {[%clk 0:01:58.5]} 19. O-O {[%clk 0:00:22.7]}
19... f6 {[%clk 0:01:55.7]} 20. Rfe1 {[%clk 0:00:20]} 20... g6 {[%clk
0:01:52.5]} 0-1

[Event "*** Titled Tuesday Blitz"]
[Site "Chess.com"]
[Date "2018.09.04"]
[Round "8"]
[White "Fighterman91"]
[Black "tsakos2731"]
[Result "0-1"]
[WhiteElo "2480"]
[BlackElo "2640"]
[TimeControl "180+2"]
[EndTime "15:21:21 PDT"]
[Termination "tsakos2731 won by resignation"]

1. d4 {[%clk 0:03:01.9]} 1... d5 {[%clk 0:03:00.5]} 2. Bf4 {[%clk 0:03:01.9]}
2... Nf6 {[%clk 0:02:59.8]} 3. e3 {[%clk 0:03:02.1]} 3... c5 {[%clk 0:03:00]} 4.
c3 {[%clk 0:03:02.7]} 4... Nc6 {[%clk 0:03:00.8]} 5. Nd2 {[%clk 0:03:03.2]} 5...
e6 {[%clk 0:03:01.2]} 6. Ngf3 {[%clk 0:03:03.7]} 6... Nh5 {[%clk 0:03:02.5]} 7.
Bg5 {[%clk 0:03:01.7]} 7... Qb6 {[%clk 0:03:02.4]} 8. Rb1 {[%clk 0:02:58.9]}
8... h6 {[%clk 0:03:02.2]} 9. Bh4 {[%clk 0:02:59.1]} 9... g5 {[%clk 0:03:00.4]}
10. Ng1 {[%clk 0:02:56.3]} 10... cxd4 {[%clk 0:02:46.1]} 11. exd4 {[%clk
0:02:54.8]} 11... Nf4 {[%clk 0:02:45.1]} 12. Bg3 {[%clk 0:02:55.6]} 12... e5
{[%clk 0:02:46.2]} 13. dxe5 {[%clk 0:02:46.2]} 13... Bf5 {[%clk 0:02:44.8]} 14.
Rc1 {[%clk 0:02:42]} 14... Nxe5 {[%clk 0:02:43.1]} 15. Bxf4 {[%clk 0:02:42.2]}
15... gxf4 {[%clk 0:02:44.6]} 16. Ngf3 {[%clk 0:02:39.5]} 16... Nxf3+ {[%clk
0:02:45.6]} 17. Nxf3 {[%clk 0:02:36.7]} 17... O-O-O {[%clk 0:02:43.1]} 18. Be2
{[%clk 0:02:29.6]} 18... Rg8 {[%clk 0:02:39.5]} 19. Nd4 {[%clk 0:02:13.8]} 19...
Rxg2 {[%clk 0:02:33.1]} 20. Bf3 {[%clk 0:02:12.9]} 20... Rg8 {[%clk 0:02:32.6]}
21. Nxf5 {[%clk 0:02:09.3]} 21... Qe6+ {[%clk 0:02:32.8]} 22. Kf1 {[%clk
0:02:03.2]} 22... Qxf5 {[%clk 0:02:33.8]} 23. h3 {[%clk 0:02:05.1]} 23... Kb8
{[%clk 0:02:25.8]} 24. c4 {[%clk 0:01:59.6]} 24... d4 {[%clk 0:02:19]} 25. Qb3
{[%clk 0:01:50.5]} 25... b6 {[%clk 0:02:20.2]} 26. Rd1 {[%clk 0:01:22.9]} 26...
d3 {[%clk 0:02:18.7]} 27. Bd5 {[%clk 0:01:19.7]} 27... Rxd5 {[%clk 0:02:11]} 28.
cxd5 {[%clk 0:01:20]} 28... Qe4 {[%clk 0:02:12.1]} 29. Qxd3 {[%clk 0:01:04]}
29... Qxh1+ {[%clk 0:02:12.4]} 30. Ke2 {[%clk 0:01:05.8]} 30... Rg1 {[%clk
0:02:07.1]} 31. Rxg1 {[%clk 0:00:54.6]} 31... Qxg1 {[%clk 0:02:09]} 32. Qe4
{[%clk 0:00:55.6]} 32... Qc1 {[%clk 0:02:10.1]} 0-1